[Event "*** Titled Tuesday Blitz"]
[Site "Chess.com"]
[Date "2019.08.06"]
[Round "4"]
[White "XiaoKangZhong"]
[Black "norwaytoadog"]
[Result "0-1"]
[WhiteElo "2350"]
[BlackElo "2254"]
[TimeControl "180+2"]
[EndTime "13:49:57 PDT"]
[Termination "norwaytoadog won by resignation"]

1. e4 {[%clk 0:03:01.9]} 1... e5 {[%clk 0:03:00.4]} 2. Nf3 {[%clk 0:03:02.7]}
2... Nc6 {[%clk 0:03:01.7]} 3. Bc4 {[%clk 0:03:03.4]} 3... Nf6 {[%clk
0:03:02.3]} 4. O-O {[%clk 0:03:04.2]} 4... Be7 {[%clk 0:03:02.3]} 5. d3 {[%clk
0:03:04.2]} 5... O-O {[%clk 0:03:02.2]} 6. c3 {[%clk 0:03:03.8]} 6... d5 {[%clk
0:03:01.8]} 7. exd5 {[%clk 0:03:01.8]} 7... Nxd5 {[%clk 0:03:02.7]} 8. Qe2
{[%clk 0:02:57.7]} 8... Nb6 {[%clk 0:02:50.7]} 9. Bb3 {[%clk 0:02:56.3]} 9...
Bg4 {[%clk 0:02:47]} 10. h3 {[%clk 0:02:48.5]} 10... Bh5 {[%clk 0:02:46.9]} 11.
Nbd2 {[%clk 0:02:47.5]} 11... Kh8 {[%clk 0:02:23.8]} 12. Ne4 {[%clk 0:02:45.2]}
12... h6 {[%clk 0:02:15.4]} 13. Ng3 {[%clk 0:02:41.9]} 13... Bg6 {[%clk
0:02:12.4]} 14. Bc2 {[%clk 0:02:42.6]} 14... Bd6 {[%clk 0:02:06.3]} 15. Be3
{[%clk 0:02:28.8]} 15... Nd5 {[%clk 0:02:03.4]} 16. Rad1 {[%clk 0:02:24.6]}
16... Qe7 {[%clk 0:01:41.4]} 17. Ne4 {[%clk 0:02:19.5]} 17... f5 {[%clk
0:01:28.5]} 18. Nxd6 {[%clk 0:02:15.7]} 18... cxd6 {[%clk 0:01:17.4]} 19. Bb3
{[%clk 0:02:15]} 19... Nf6 {[%clk 0:01:05.6]} 20. Rfe1 {[%clk 0:02:02.5]} 20...
Bh5 {[%clk 0:01:04.8]} 21. Qc2 {[%clk 0:01:35.4]} 21... Bxf3 {[%clk 0:01:00.1]}
22. gxf3 {[%clk 0:01:35.2]} 22... f4 {[%clk 0:00:55]} 23. Bc1 {[%clk 0:01:34.2]}
23... Qd7 {[%clk 0:00:48.7]} 24. Kh2 {[%clk 0:01:34.8]} 24... Qf5 {[%clk
0:00:32.5]} 25. Rg1 {[%clk 0:01:29.1]} 25... Qh5 {[%clk 0:00:31.6]} 26. Qe2
{[%clk 0:01:29.4]} 26... Rae8 {[%clk 0:00:31.3]} 27. Rg2 {[%clk 0:01:28.7]}
27... d5 {[%clk 0:00:31.3]} 28. Rdg1 {[%clk 0:01:12]} 28... e4 {[%clk
0:00:31.6]} 29. dxe4 {[%clk 0:01:11.3]} 29... dxe4 {[%clk 0:00:32.6]} 30. Rxg7
{[%clk 0:01:11.7]} 30... exf3 {[%clk 0:00:31.5]} 31. Qc4 {[%clk 0:00:46.6]}
31... Re2 {[%clk 0:00:31.4]} 32. Qc5 {[%clk 0:00:44.8]} 32... Qxc5 {[%clk
0:00:29.1]} 0-1

[Event "*** Titled Tuesday Blitz"]
[Site "Chess.com"]
[Date "2019.08.06"]
[Round "4"]
[White "mitrabhaa"]
[Black "AtabayevSaparmyrat"]
[Result "0-1"]
[WhiteElo "2680"]
[BlackElo "2622"]
[TimeControl "180+2"]
[EndTime "13:50:05 PDT"]
[Termination "AtabayevSaparmyrat won by resignation"]

1. d4 {[%clk 0:03:01.7]} 1... Nf6 {[%clk 0:03:00.6]} 2. Nf3 {[%clk 0:03:00.4]}
2... g6 {[%clk 0:02:59.6]} 3. g3 {[%clk 0:02:58.1]} 3... Bg7 {[%clk 0:03:00.6]}
4. Bg2 {[%clk 0:02:58.8]} 4... O-O {[%clk 0:03:01.6]} 5. O-O {[%clk 0:02:59.5]}
5... d5 {[%clk 0:03:02.3]} 6. c4 {[%clk 0:03:00.3]} 6... dxc4 {[%clk 0:03:02.6]}
7. Na3 {[%clk 0:03:00.8]} 7... c3 {[%clk 0:03:02.3]} 8. bxc3 {[%clk 0:03:02]}
8... c5 {[%clk 0:03:03.1]} 9. Re1 {[%clk 0:03:00.4]} 9... Qa5 {[%clk 0:02:58.9]}
10. Bb2 {[%clk 0:03:00.5]} 10... Rd8 {[%clk 0:02:47.3]} 11. Qb3 {[%clk
0:02:53.4]} 11... Qa6 {[%clk 0:02:22.1]} 12. e4 {[%clk 0:02:44.6]} 12... Nc6
{[%clk 0:02:05.7]} 13. Rad1 {[%clk 0:02:35.8]} 13... cxd4 {[%clk 0:02:02.7]} 14.
cxd4 {[%clk 0:02:34.6]} 14... Bg4 {[%clk 0:02:03.9]} 15. h3 {[%clk 0:02:30.1]}
15... Bxf3 {[%clk 0:02:03.5]} 16. Bxf3 {[%clk 0:02:31.4]} 16... Na5 {[%clk
0:01:58.3]} 17. Qb5 {[%clk 0:02:26.9]} 17... Qxb5 {[%clk 0:01:56.6]} 18. Nxb5
{[%clk 0:02:25.6]} 18... Nc4 {[%clk 0:01:55.1]} 19. Ba1 {[%clk 0:02:24.9]} 19...
a6 {[%clk 0:01:55.7]} 20. Nc3 {[%clk 0:02:25.2]} 20... e6 {[%clk 0:01:42.9]} 21.
d5 {[%clk 0:02:22.1]} 21... e5 {[%clk 0:01:34.4]} 22. Be2 {[%clk 0:02:19.9]}
22... Rac8 {[%clk 0:01:35]} 23. a4 {[%clk 0:02:17.8]} 23... Ne8 {[%clk
0:01:34.3]} 24. Rb1 {[%clk 0:02:11.2]} 24... Ned6 {[%clk 0:01:29.9]} 25. Rb4
{[%clk 0:02:10]} 25... Bf8 {[%clk 0:01:27.3]} 26. Reb1 {[%clk 0:01:57.6]} 26...
Nd2 {[%clk 0:01:18.2]} 27. Rd1 {[%clk 0:01:50.3]} 27... N2c4 {[%clk 0:01:17.7]}
28. Rb3 {[%clk 0:01:49.1]} 28... Rc7 {[%clk 0:01:13.6]} 29. f4 {[%clk
0:01:37.9]} 29... Bg7 {[%clk 0:00:50.6]} 30. Kf2 {[%clk 0:01:26.7]} 30... Rdc8
{[%clk 0:00:49.4]} 31. Rdb1 {[%clk 0:01:20.2]} 31... Nd2 {[%clk 0:00:34.1]} 0-1

[Event "*** Titled Tuesday Blitz"]
[Site "Chess.com"]
[Date "2019.08.06"]
[Round "4"]
[White "iLuusions"]
[Black "TijanaBlagojevic"]
[Result "1-0"]
[WhiteElo "2540"]
[BlackElo "2303"]
[TimeControl "180+2"]
[EndTime "13:50:05 PDT"]
[Termination "iLuusions won by resignation"]

1. d4 {[%clk 0:03:01.2]} 1... d5 {[%clk 0:02:59]} 2. c4 {[%clk 0:03:03.1]} 2...
c6 {[%clk 0:02:57.4]} 3. Nf3 {[%clk 0:03:03.7]} 3... Nf6 {[%clk 0:02:55.8]} 4.
Nc3 {[%clk 0:03:03.2]} 4... e6 {[%clk 0:02:55.3]} 5. Bg5 {[%clk 0:03:03.4]} 5...
Nbd7 {[%clk 0:02:51.2]} 6. cxd5 {[%clk 0:03:03.2]} 6... e5 {[%clk 0:02:51.7]} 7.
dxe5 {[%clk 0:03:02]} 7... h6 {[%clk 0:02:51.4]} 8. Bh4 {[%clk 0:02:49.8]} 8...
g5 {[%clk 0:02:52]} 9. dxc6 {[%clk 0:02:50.4]} 9... gxh4 {[%clk 0:02:47.4]} 10.
exf6 {[%clk 0:02:45.9]} 10... Nxf6 {[%clk 0:02:24.7]} 11. Qxd8+ {[%clk
0:02:43.6]} 11... Kxd8 {[%clk 0:02:25.8]} 12. cxb7 {[%clk 0:02:44.8]} 12... Bxb7
{[%clk 0:02:27.7]} 13. O-O-O+ {[%clk 0:02:46]} 13... Kc7 {[%clk 0:01:54.6]} 14.
Nxh4 {[%clk 0:02:45.8]} 14... Bb4 {[%clk 0:01:14.9]} 15. e3 {[%clk 0:02:41.1]}
15... Rac8 {[%clk 0:01:00.7]} 16. Nb5+ {[%clk 0:02:30]} 16... Kb6+ {[%clk
0:00:43.5]} 17. Kb1 {[%clk 0:02:31.3]} 17... Ne4 {[%clk 0:00:44]} 18. a3 {[%clk
0:01:44.6]} 18... Be7 {[%clk 0:00:28.6]} 19. Nf5 {[%clk 0:01:43.2]} 19... Bf6
{[%clk 0:00:04.8]} 20. f3 {[%clk 0:01:16.3]} 20... Nc5 {[%clk 0:00:02.6]} 21.
Rd6+ {[%clk 0:01:16.4]} 21... Rc6 {[%clk 0:00:03.5]} 22. Rxc6+ {[%clk 0:01:16]}
22... Bxc6 {[%clk 0:00:05.4]} 23. Nbd4 {[%clk 0:01:17.4]} 23... Na4 {[%clk
0:00:07]} 24. Bc4 {[%clk 0:01:12.5]} 24... Rd8 {[%clk 0:00:07.7]} 25. Rc1 {[%clk
0:01:11.6]} 25... Nc5 {[%clk 0:00:09]} 26. Bxf7 {[%clk 0:01:11.8]} 26... Ba4
{[%clk 0:00:08]} 27. Ka2 {[%clk 0:01:10.4]} 27... Nd3 {[%clk 0:00:09.5]} 28. Rc3
{[%clk 0:01:09.5]} 28... Nc5 {[%clk 0:00:09.1]} 29. Bc4 {[%clk 0:01:06.4]} 29...
a5 {[%clk 0:00:09.7]} 30. b4 {[%clk 0:01:05.5]} 30... axb4 {[%clk 0:00:10.3]}
31. axb4 {[%clk 0:01:07.4]} 31... Nb7 {[%clk 0:00:11.6]} 32. Ra3 {[%clk
0:01:07.3]} 32... Ra8 {[%clk 0:00:13]} 33. Kb2 {[%clk 0:01:08.3]} 33... Be5
{[%clk 0:00:11.4]} 34. Bb3 {[%clk 0:01:09.3]} 34... Bxb3 {[%clk 0:00:11.5]} 35.
Rxa8 {[%clk 0:01:09.9]} 1-0

[Event "*** Titled Tuesday Blitz"]
[Site "Chess.com"]
[Date "2019.08.06"]
[Round "4"]
[White "Mostii"]
[Black "belisarius64"]
[Result "0-1"]
[WhiteElo "2364"]
[BlackElo "2644"]
[TimeControl "180+2"]
[EndTime "13:50:07 PDT"]
[Termination "belisarius64 won by checkmate"]

1. d4 {[%clk 0:03:01.9]} 1... Nf6 {[%clk 0:02:59.8]} 2. Nf3 {[%clk 0:03:03.8]}
2... g6 {[%clk 0:03:00.1]} 3. g3 {[%clk 0:03:05.7]} 3... d5 {[%clk 0:03:01.1]}
4. Bg2 {[%clk 0:03:07.6]} 4... Bg7 {[%clk 0:03:02.4]} 5. O-O {[%clk 0:03:09.5]}
5... c6 {[%clk 0:03:04.1]} 6. b3 {[%clk 0:03:11.4]} 6... O-O {[%clk 0:03:05.7]}
7. Bb2 {[%clk 0:03:13.2]} 7... a5 {[%clk 0:03:05.5]} 8. Nbd2 {[%clk 0:03:15.1]}
8... a4 {[%clk 0:03:05.8]} 9. c4 {[%clk 0:03:16.4]} 9... Bf5 {[%clk 0:02:57.7]}
10. Nh4 {[%clk 0:03:14.1]} 10... Be6 {[%clk 0:02:57.9]} 11. c5 {[%clk
0:03:04.8]} 11... Qc8 {[%clk 0:02:46.9]} 12. Re1 {[%clk 0:03:04.4]} 12... Bh3
{[%clk 0:02:47.4]} 13. Bh1 {[%clk 0:03:05.6]} 13... Re8 {[%clk 0:02:48.6]} 14.
f4 {[%clk 0:03:04.5]} 14... a3 {[%clk 0:02:40.1]} 15. Bc3 {[%clk 0:03:05.1]}
15... Na6 {[%clk 0:02:42]} 16. b4 {[%clk 0:03:00.2]} 16... b6 {[%clk 0:02:27.1]}
17. e4 {[%clk 0:02:55.5]} 17... dxe4 {[%clk 0:02:27]} 18. Nxe4 {[%clk
0:02:57.4]} 18... bxc5 {[%clk 0:02:27.3]} 19. Nxc5 {[%clk 0:02:54.8]} 19... Nd5
{[%clk 0:02:26.4]} 20. Bxd5 {[%clk 0:02:53.5]} 20... cxd5 {[%clk 0:02:26]} 21.
Qf3 {[%clk 0:02:36.1]} 21... Nxb4 {[%clk 0:02:23.5]} 22. Bxb4 {[%clk 0:02:13]}
22... Bxd4+ {[%clk 0:02:24.2]} 23. Kh1 {[%clk 0:02:14.9]} 23... Bxc5 {[%clk
0:02:25.5]} 24. Bxc5 {[%clk 0:02:16.7]} 24... Qxc5 {[%clk 0:02:14.2]} 25. g4
{[%clk 0:02:18]} 25... Ra4 {[%clk 0:02:03.2]} 26. Qxh3 {[%clk 0:01:32.9]} 26...
Rxf4 {[%clk 0:02:02.5]} 27. Ng2 {[%clk 0:01:18.6]} 27... Rf2 {[%clk 0:01:58.6]}
28. Rac1 {[%clk 0:00:50.1]} 28... Qd6 {[%clk 0:01:58.7]} 29. Qb3 {[%clk
0:00:34.2]} 29... e5 {[%clk 0:01:44.4]} 30. Rcd1 {[%clk 0:00:18.7]} 30... d4
{[%clk 0:01:44.3]} 31. Kg1 {[%clk 0:00:18.8]} 31... Rb2 {[%clk 0:01:44.4]} 32.
Qa4 {[%clk 0:00:19.7]} 32... Rc8 {[%clk 0:01:36.4]} 33. Rd3 {[%clk 0:00:11]}
33... Rcc2 {[%clk 0:01:32.7]} 34. Rg3 {[%clk 0:00:11.5]} 34... Qd5 {[%clk
0:01:30.8]} 35. Qe8+ {[%clk 0:00:11.6]} 35... Kg7 {[%clk 0:01:31.8]} 36. Nh4
{[%clk 0:00:10.2]} 36... Rxh2 {[%clk 0:01:27.7]} 37. Nf5+ {[%clk 0:00:10.2]}
37... Kf6 {[%clk 0:01:11.9]} 38. Qh8+ {[%clk 0:00:11]} 38... Kg5 {[%clk
0:01:12.6]} 39. Qe8 {[%clk 0:00:12.9]} 39... Rh1# {[%clk 0:01:12.8]} 0-1

[Event "*** Titled Tuesday Blitz"]
[Site "Chess.com"]
[Date "2019.08.06"]
[Round "4"]
[White "AminMolaei"]
[Black "gmcorrales"]
[Result "1-0"]
[WhiteElo "2556"]
[BlackElo "2724"]
[TimeControl "180+2"]
[EndTime "13:50:09 PDT"]
[Termination "AminMolaei won by resignation"]

1. d4 {[%clk 0:03:01.9]} 1... Nf6 {[%clk 0:03:00.8]} 2. c4 {[%clk 0:03:03.4]}
2... g6 {[%clk 0:03:01.4]} 3. Nc3 {[%clk 0:03:03.8]} 3... d5 {[%clk 0:03:01.6]}
4. Bg5 {[%clk 0:03:04.5]} 4... Bg7 {[%clk 0:03:01]} 5. Nf3 {[%clk 0:03:04.2]}
5... Ne4 {[%clk 0:03:02.1]} 6. Bh4 {[%clk 0:03:05]} 6... Nxc3 {[%clk 0:03:02.3]}
7. bxc3 {[%clk 0:03:06.9]} 7... c5 {[%clk 0:03:03.6]} 8. e3 {[%clk 0:03:07.9]}
8... Nc6 {[%clk 0:03:03.9]} 9. cxd5 {[%clk 0:03:07.3]} 9... Qxd5 {[%clk
0:03:05.8]} 10. Be2 {[%clk 0:03:08.7]} 10... cxd4 {[%clk 0:03:06.8]} 11. cxd4
{[%clk 0:03:06]} 11... Qa5+ {[%clk 0:03:05]} 12. Qd2 {[%clk 0:03:06.7]} 12...
Qxd2+ {[%clk 0:03:05.4]} 13. Kxd2 {[%clk 0:03:08.6]} 13... Bf5 {[%clk 0:02:46]}
14. Rhc1 {[%clk 0:03:08.9]} 14... Rc8 {[%clk 0:02:46.4]} 15. Rc5 {[%clk
0:03:00.1]} 15... b6 {[%clk 0:02:31.9]} 16. Rc3 {[%clk 0:02:56.9]} 16... Na5
{[%clk 0:02:32.8]} 17. Bb5+ {[%clk 0:02:51.6]} 17... Kd8 {[%clk 0:02:31.2]} 18.
Rac1 {[%clk 0:02:52.5]} 18... Rxc3 {[%clk 0:02:30.8]} 19. Rxc3 {[%clk
0:02:54.4]} 19... Bd7 {[%clk 0:02:27.1]} 20. Ba6 {[%clk 0:02:49]} 20... f6
{[%clk 0:02:27.8]} 21. Bg3 {[%clk 0:02:45.3]} 21... Bc6 {[%clk 0:02:28.1]} 22.
d5 {[%clk 0:02:30.8]} 22... Bxd5 {[%clk 0:02:20.7]} 23. Rd3 {[%clk 0:02:29.8]}
23... e6 {[%clk 0:02:10.9]} 24. e4 {[%clk 0:02:29.7]} 24... Bh6+ {[%clk
0:02:11.5]} 25. Ke2 {[%clk 0:02:29.4]} 25... Nc6 {[%clk 0:02:10.7]} 26. a3
{[%clk 0:02:06.1]} 26... Ne7 {[%clk 0:01:31.1]} 27. exd5 {[%clk 0:02:05.9]}
27... Nxd5 {[%clk 0:01:33]} 28. Bc4 {[%clk 0:02:04.3]} 28... Kd7 {[%clk
0:01:34.3]} 29. Bxd5 {[%clk 0:02:05.2]} 29... exd5 {[%clk 0:01:36.2]} 30. Rxd5+
{[%clk 0:02:07.1]} 30... Kc6 {[%clk 0:01:37.7]} 31. Rd6+ {[%clk 0:02:08.4]}
31... Kb5 {[%clk 0:01:39.4]} 32. Rxf6 {[%clk 0:02:05.2]} 32... Re8+ {[%clk
0:01:40.1]} 33. Kd3 {[%clk 0:02:05.2]} 33... Bf8 {[%clk 0:01:40.7]} 34. Rf7
{[%clk 0:02:00.5]} 34... a5 {[%clk 0:01:33.1]} 35. Nd4+ {[%clk 0:01:58]} 35...
Ka4 {[%clk 0:01:34.4]} 36. Kc4 {[%clk 0:01:53.1]} 36... Rc8+ {[%clk 0:01:33.8]}
37. Rc7 {[%clk 0:01:47.7]} 37... Re8 {[%clk 0:01:27.1]} 38. Rc6 {[%clk
0:01:36.3]} 38... Bc5 {[%clk 0:01:27]} 39. Bd6 {[%clk 0:01:30.3]} 39... Bxd6
{[%clk 0:01:25.8]} 40. Rxd6 {[%clk 0:01:31.2]} 40... b5+ {[%clk 0:01:27.3]} 41.
Kd3 {[%clk 0:01:27.2]} 41... Rb8 {[%clk 0:01:23.9]} 42. Ra6 {[%clk 0:01:27.8]}
42... Rd8 {[%clk 0:01:23.6]} 43. Kc3 {[%clk 0:01:26.2]} 43... Rc8+ {[%clk
0:01:24.2]} 44. Nc6 {[%clk 0:01:26.4]} 44... b4+ {[%clk 0:01:18.3]} 45. Kc4
{[%clk 0:01:17.2]} 45... Kxa3 {[%clk 0:01:14.3]} 46. Rxa5+ {[%clk 0:01:17.7]}
46... Kb2 {[%clk 0:01:15.8]} 47. Rc5 {[%clk 0:01:15.5]} 47... b3 {[%clk
0:01:12.8]} 48. Nd4 {[%clk 0:01:16.4]} 48... Rb8 {[%clk 0:01:13.3]} 49. Rb5
{[%clk 0:01:16.3]} 49... Rc8+ {[%clk 0:01:13.1]} 50. Kd5 {[%clk 0:01:17.4]}
50... Rd8+ {[%clk 0:01:13.4]} 51. Ke4 {[%clk 0:01:18.3]} 51... Re8+ {[%clk
0:01:13.6]} 52. Kd3 {[%clk 0:01:19.3]} 1-0

[Event "*** Titled Tuesday Blitz"]
[Site "Chess.com"]
[Date "2019.08.06"]
[Round "4"]
[White "Bigfish1995"]
[Black "VladimirBelous"]
[Result "1-0"]
[WhiteElo "3058"]
[BlackElo "2799"]
[TimeControl "180+2"]
[EndTime "13:50:10 PDT"]
[Termination "Bigfish1995 won by checkmate"]

1. d4 {[%clk 0:03:01.9]} 1... Nf6 {[%clk 0:03:00.6]} 2. c4 {[%clk 0:03:01.9]}
2... g6 {[%clk 0:02:58.9]} 3. Nc3 {[%clk 0:03:02.2]} 3... Bg7 {[%clk 0:02:56.9]}
4. e4 {[%clk 0:03:02.7]} 4... d6 {[%clk 0:02:58.2]} 5. Nf3 {[%clk 0:03:02.5]}
5... O-O {[%clk 0:02:58.2]} 6. h3 {[%clk 0:03:03.7]} 6... a5 {[%clk 0:02:53.9]}
7. Be3 {[%clk 0:03:03.9]} 7... Na6 {[%clk 0:02:52.9]} 8. Be2 {[%clk 0:03:04.1]}
8... e5 {[%clk 0:02:43.6]} 9. d5 {[%clk 0:02:46.6]} 9... Nc5 {[%clk 0:02:37.2]}
10. Nd2 {[%clk 0:02:45.7]} 10... a4 {[%clk 0:02:31.4]} 11. g4 {[%clk 0:02:26.4]}
11... c6 {[%clk 0:02:29.5]} 12. h4 {[%clk 0:02:23.1]} 12... Qa5 {[%clk 0:02:09]}
13. Bxc5 {[%clk 0:01:24.2]} 13... dxc5 {[%clk 0:01:49]} 14. a3 {[%clk 0:01:20]}
14... Ne8 {[%clk 0:01:42.3]} 15. Bd3 {[%clk 0:01:18.8]} 15... Nd6 {[%clk
0:01:34]} 16. Qe2 {[%clk 0:01:17.9]} 16... Bd7 {[%clk 0:01:29.1]} 17. Rd1 {[%clk
0:01:08.1]} 17... Rad8 {[%clk 0:00:48.1]} 18. Kf1 {[%clk 0:00:54.3]} 18... cxd5
{[%clk 0:00:35.5]} 19. Nxd5 {[%clk 0:00:52.3]} 19... Be6 {[%clk 0:00:36.5]} 20.
h5 {[%clk 0:00:44.6]} 20... Bxd5 {[%clk 0:00:36.8]} 21. exd5 {[%clk 0:00:40.6]}
21... f5 {[%clk 0:00:20]} 22. hxg6 {[%clk 0:00:41.5]} 22... e4 {[%clk
0:00:19.5]} 23. gxf5 {[%clk 0:00:42.8]} 23... Nxf5 {[%clk 0:00:14.6]} 24. Nxe4
{[%clk 0:00:38.8]} 24... Rde8 {[%clk 0:00:16.1]} 25. Qh5 {[%clk 0:00:21.7]}
25... h6 {[%clk 0:00:17.4]} 26. Nf6+ {[%clk 0:00:22]} 26... Rxf6 {[%clk
0:00:18]} 27. Bxf5 {[%clk 0:00:22.9]} 27... Ref8 {[%clk 0:00:18.6]} 28. Be6+
{[%clk 0:00:19.9]} 28... Kh8 {[%clk 0:00:20.1]} 29. Bf7 {[%clk 0:00:21.3]} 29...
Qb6 {[%clk 0:00:19.6]} 30. Qxh6+ {[%clk 0:00:21.7]} 30... Bxh6 {[%clk
0:00:19.6]} 31. Rxh6+ {[%clk 0:00:23.6]} 31... Kg7 {[%clk 0:00:21.1]} 32. Rh7#
{[%clk 0:00:25.5]} 1-0

[Event "*** Titled Tuesday Blitz"]
[Site "Chess.com"]
[Date "2019.08.06"]
[Round "4"]
[White "rekosheten"]
[Black "GremioPrudente"]
[Result "0-1"]
[WhiteElo "2350"]
[BlackElo "2235"]
[TimeControl "180+2"]
[EndTime "13:50:11 PDT"]
[Termination "GremioPrudente won by resignation"]

1. e4 {[%clk 0:03:01.9]} 1... e6 {[%clk 0:03:00.8]} 2. d4 {[%clk 0:03:02.8]}
2... d5 {[%clk 0:03:02.3]} 3. e5 {[%clk 0:03:03.8]} 3... c5 {[%clk 0:03:03]} 4.
c3 {[%clk 0:03:05.4]} 4... Qb6 {[%clk 0:03:04.3]} 5. Nf3 {[%clk 0:03:05.9]} 5...
Bd7 {[%clk 0:03:05.7]} 6. Bd3 {[%clk 0:03:02.6]} 6... Bb5 {[%clk 0:03:02.8]} 7.
O-O {[%clk 0:03:00.5]} 7... Bxd3 {[%clk 0:02:57.7]} 8. Qxd3 {[%clk 0:03:02.4]}
8... Nc6 {[%clk 0:02:59.1]} 9. dxc5 {[%clk 0:02:57.1]} 9... Bxc5 {[%clk
0:02:59.1]} 10. b4 {[%clk 0:02:58.6]} 10... Bf8 {[%clk 0:02:43.6]} 11. a4 {[%clk
0:02:45.7]} 11... Nge7 {[%clk 0:02:37.4]} 12. Bf4 {[%clk 0:02:18.5]} 12... Ng6
{[%clk 0:02:28.7]} 13. Bg3 {[%clk 0:02:19.6]} 13... Qc7 {[%clk 0:02:30.3]} 14.
Re1 {[%clk 0:02:16]} 14... Be7 {[%clk 0:02:25.7]} 15. Na3 {[%clk 0:02:11.2]}
15... a6 {[%clk 0:02:21.2]} 16. Nc2 {[%clk 0:01:44.8]} 16... O-O {[%clk
0:02:21.6]} 17. h4 {[%clk 0:01:42.1]} 17... h5 {[%clk 0:02:13.6]} 18. Rac1
{[%clk 0:01:31.9]} 18... Qd8 {[%clk 0:02:08]} 19. Ncd4 {[%clk 0:01:22.3]} 19...
Nxd4 {[%clk 0:02:02.4]} 20. Nxd4 {[%clk 0:01:06.5]} 20... Nxh4 {[%clk
0:02:03.1]} 21. Bxh4 {[%clk 0:00:39]} 21... Bxh4 {[%clk 0:02:03.5]} 22. g3
{[%clk 0:00:36.5]} 22... Bg5 {[%clk 0:02:01.6]} 23. f4 {[%clk 0:00:37.2]} 23...
Bh6 {[%clk 0:01:51.6]} 24. Rc2 {[%clk 0:00:27.1]} 24... Re8 {[%clk 0:01:44]} 25.
f5 {[%clk 0:00:16.8]} 25... Rc8 {[%clk 0:01:39]} 26. Rh2 {[%clk 0:00:16.7]}
26... Qg5 {[%clk 0:01:32.3]} 27. Kg2 {[%clk 0:00:09.3]} 27... Qd2+ {[%clk
0:01:20.8]} 28. Qxd2 {[%clk 0:00:07]} 28... Bxd2 {[%clk 0:01:22.7]} 29. Re2
{[%clk 0:00:08.2]} 29... Bxc3 {[%clk 0:01:24]} 30. Nf3 {[%clk 0:00:09.7]} 30...
exf5 {[%clk 0:01:06.1]} 31. Rxh5 {[%clk 0:00:07.8]} 31... d4 {[%clk 0:01:07.7]}
32. Rxf5 {[%clk 0:00:06.5]} 32... d3 {[%clk 0:01:02.9]} 33. Ra2 {[%clk
0:00:07.2]} 33... Bxb4 {[%clk 0:01:02.9]} 34. Kf2 {[%clk 0:00:07]} 34... Rc2+
{[%clk 0:00:54.7]} 0-1

[Event "*** Titled Tuesday Blitz"]
[Site "Chess.com"]
[Date "2019.08.06"]
[Round "4"]
[White "Faustregel"]
[Black "timator"]
[Result "1-0"]
[WhiteElo "2519"]
[BlackElo "2385"]
[TimeControl "180+2"]
[EndTime "13:50:12 PDT"]
[Termination "Faustregel won by checkmate"]

1. e4 {[%clk 0:03:00.6]} 1... c5 {[%clk 0:02:12.4]} 2. Nf3 {[%clk 0:03:00.3]}
2... d6 {[%clk 0:02:12.9]} 3. d4 {[%clk 0:03:01.8]} 3... cxd4 {[%clk 0:02:14.3]}
4. Nxd4 {[%clk 0:03:03.3]} 4... Nf6 {[%clk 0:02:15.6]} 5. Nc3 {[%clk 0:03:04.3]}
5... a6 {[%clk 0:02:17.2]} 6. Bg5 {[%clk 0:03:04.6]} 6... Nbd7 {[%clk
0:02:17.4]} 7. f4 {[%clk 0:03:00.8]} 7... Qc7 {[%clk 0:02:14.5]} 8. Qf3 {[%clk
0:02:55.3]} 8... b5 {[%clk 0:02:15.2]} 9. O-O-O {[%clk 0:02:55]} 9... Bb7 {[%clk
0:02:16.2]} 10. Nd5 {[%clk 0:02:54.5]} 10... Nxd5 {[%clk 0:02:12.2]} 11. exd5
{[%clk 0:02:55.2]} 11... Nf6 {[%clk 0:02:11.8]} 12. Bxf6 {[%clk 0:02:52.9]}
12... gxf6 {[%clk 0:02:06.6]} 13. Kb1 {[%clk 0:02:47]} 13... e6 {[%clk
0:01:46.4]} 14. Bd3 {[%clk 0:01:57.1]} 14... Bxd5 {[%clk 0:01:36.8]} 15. Be4
{[%clk 0:01:56.6]} 15... Bxe4 {[%clk 0:01:38.1]} 16. Qxe4 {[%clk 0:01:57.4]}
16... d5 {[%clk 0:00:31.1]} 17. Qe2 {[%clk 0:01:58]} 17... O-O-O {[%clk
0:00:29.3]} 18. Rd3 {[%clk 0:01:45.8]} 18... Kb7 {[%clk 0:00:25.4]} 19. Rc3
{[%clk 0:01:46.1]} 19... Qd7 {[%clk 0:00:24.2]} 20. a4 {[%clk 0:01:10.8]} 20...
Rc8 {[%clk 0:00:21]} 21. Rxc8 {[%clk 0:01:07]} 21... Qxc8 {[%clk 0:00:22.9]} 22.
axb5 {[%clk 0:01:08]} 22... a5 {[%clk 0:00:21.4]} 23. Nc6 {[%clk 0:01:06.8]}
23... Qc7 {[%clk 0:00:21.4]} 24. f5 {[%clk 0:01:02.4]} 24... e5 {[%clk
0:00:21.7]} 25. Rd1 {[%clk 0:01:01.1]} 25... d4 {[%clk 0:00:22.9]} 26. c3 {[%clk
0:01:02.1]} 26... dxc3 {[%clk 0:00:14.3]} 27. Rd8 {[%clk 0:01:00.6]} 27... Bg7
{[%clk 0:00:13.8]} 28. Rxh8 {[%clk 0:00:57.2]} 28... Bxh8 {[%clk 0:00:15.7]} 29.
bxc3 {[%clk 0:00:58.2]} 29... Qb6 {[%clk 0:00:15.5]} 30. Kb2 {[%clk 0:00:50.1]}
30... Qc5 {[%clk 0:00:15.3]} 31. Kb3 {[%clk 0:00:49.2]} 31... Kb6 {[%clk
0:00:16.6]} 32. c4 {[%clk 0:00:45.9]} 32... Bg7 {[%clk 0:00:17.8]} 33. Qd3
{[%clk 0:00:47]} 33... Kc7 {[%clk 0:00:14.2]} 34. Qd8+ {[%clk 0:00:47.3]} 34...
Kb7 {[%clk 0:00:15.4]} 35. Qb8# {[%clk 0:00:46.3]} 1-0